Workbook

Sheet Дневник.питания
H1: =C1*G1/100 -> 0 | I1: =D1*G1/100 -> 0 | J1: =E1*G1/100 -> 0 | K1: =F1*G1/100 -> 0
B2: Легкая физическая нагрузка k=1,375 | C2: 95
B3: Малоподвижный образ жизни k=1,200 | C3: 170
B4: Легкая физическая нагрузка k=1,375 | C4: 65
B5: Средняя физическая нагрузка k=1,463
B6: Выраженная физич. нагрузка k=1,638
B7: Тяжелая физическая нагрузка k=1,900
B8: ="Индивидуальный расчетный k " & TEXT(C8,"@") -> Индивидуальный расчетный k 1,508 | C8: ='Индивидуальный К'!G38 -> 1.508
A9: Дата | C9: на 100 граммов продукта | G9: Фактическое количество продукта в граммах | H9: фактическое содержание
B10: Пржде чем начать заполнение "Дневника" установите курсор в эту ячейку | C10: Белки | D10: Жиры | E10: Углеводы | F10: Ккал | H10: Белки | I10: Жиры | J10: Углеводы | K10: Ккал
A11: 1 | B11: 2 | C11: 3 | D11: 4 | E11: 5 | F11: 6 | G11: 7 | H11: 8 | I11: 9 | J11: 10 | K11: 11
A12: 29.01.2018 | B12: Яичница, глазунья | C12: 12.9 | D12: 20.9 | E12: 0.9 | F12: 243 | G12: 120 | H12: =C12*G12/100 -> 15.48 | I12: =D12*G12/100 -> 25.08 | J12: =E12*G12/100 -> 1.08 | K12: =F12*G12/100 -> 291.6
A13: 29.01.2018 | B13: Хлеб из ржано-пшеничной муки | C13: 6.8 | D13: 1.2 | E13: 46.4 | F13: 215 | G13: 50 | H13: =C13*G13/100 -> 3.4 | I13: =D13*G13/100 -> 0.6 | J13: =E13*G13/100 -> 23.2 | K13: =F13*G13/100 -> 107.5
A14: 29.01.2018 | B14: Чай, заваренный, на водопроводной воде | C14: 0 | D14: 0 | E14: 0.3 | F14: 1 | G14: 200 | H14: =C14*G14/100 -> 0 | I14: =D14*G14/100 -> 0 | J14: =E14*G14/100 -> 0.6 | K14: =F14*G14/100 -> 2
A15: 29.01.2018 | B15: Пирожки печеные из дрожжевого теста (простые) | C15: 14.4 | D15: 9.2 | E15: 38.7 | F15: 285.8 | G15: 100 | H15: =C15*G15/100 -> 14.4 | I15: =D15*G15/100 -> 9.2 | J15: =E15*G15/100 -> 38.7 | K15: =F15*G15/100 -> 285.8
A16: 29.01.2018 | B16: Салат из свежих овощей | C16: 1.6 | D16: 4.4 | E16: 8.3 | F16: 77.5 | G16: 180 | H16: =C16*G16/100 -> 2.88 | I16: =D16*G16/100 -> 7.92 | J16: =E16*G16/100 -> 14.94 | K16: =F16*G16/100 -> 139.5
A17: 29.01.2018 | B17: Суп-харчо | C17: 4.8 | D17: 5.5 | E17: 5 | F17: 87.9 | G17: 350 | H17: 16.8 | I17: 19.25 | J17: 17.5 | K17: 307.65
A18: 29.01.2018 | B18: Котлеты натуральные паровые | C18: 8.8 | D18: 19.4 | E18: 0.008 | F18: 209.8 | G18: 120 | H18: 10.56 | I18: 23.28 | J18: 0.0096 | K18: 251.76
A19: 29.01.2018 | B19: Картофель вареный | C19: 2.3 | D19: 0.1 | E19: 16.9 | F19: 83.4 | G19: 200 | H19: 4.6 | I19: 0.2 | J19: 33.8 | K19: 166.8
A20: 29.01.2018 | B20: Кофе, молотый, сваренный на водопроводной воде | C20: 0.12 | D20: 0.02 | E20: 0 | F20: 1 | G20: 150 | H20: 0.18 | I20: 0.03 | J20: 0 | K20: 1.5
A21: 29.01.2018 | B21: Хлеб из ржано-пшеничной муки | C21: 6.8 | D21: 1.2 | E21: 46.4 | F21: 215 | G21: 150 | H21: =C21*G21/100 -> 10.2 | I21: =D21*G21/100 -> 1.8 | J21: =E21*G21/100 -> 69.6 | K21: =F21*G21/100 -> 322.5
A22: 29.01.2018 | B22: Пельмени отварные | C22: 9.9 | D22: 13.9 | E22: 13.5 | F22: 219 | G22: 150 | H22: 14.85 | I22: 20.85 | J22: 20.25 | K22: 328.5
A23: 29.01.2018 | B23: Компот яблочный | C23: 0.1 | D23: 0.1 | E23: 13.6 | F23: 55 | G23: 200 | H23: 0.2 | I23: 0.2 | J23: 27.2 | K23: 110
A24: 29.01.2018 | B24: Кефир 2.5% | C24: 2.8 | D24: 2.5 | E24: 3.9 | F24: 50 | G24: 200 | H24: 5.6 | I24: 5 | J24: 7.8 | K24: 100
A25: 29.01.2018 Итог | H25: =SUBTOTAL(9,H12:H24) -> 99.15 | I25: =SUBTOTAL(9,I12:I24) -> 113.41 | J25: =SUBTOTAL(9,J12:J24) -> 254.6796 | K25: =SUBTOTAL(9,K12:K24) -> 2415.11
A26: 30.01.2018 | B26: Гречневая каша с маслом | C26: 4.5 | D26: 2.3 | E26: 25 | F26: 132 | G26: 210 | H26: 9.45 | I26: 4.83 | J26: 52.5 | K26: 277.2
A27: 2018-01-30 | B27: Кофе на молоке | C27: 0.7 | D27: 1 | E27: 11.2 | F27: 58 | G27: 220 | H27: 1.54 | I27: 2.2 | J27: 24.64 | K27: 127.6
A28: 30.01.2018 | B28: Кекс кондитерский | C28: 6.2 | D28: 13.6 | E28: 34.4 | F28: 276.2 | G28: 150 | H28: 9.3 | I28: 20.4 | J28: 51.6 | K28: 414.3
A29: 30.01.2018 | B29: Салат сезонный | C29: 2.1 | D29: 10.1 | E29: 8.2 | F29: 129.8 | G29: 250 | H29: 5.25 | I29: 25.25 | J29: 20.5 | K29: 324.5
A30: 30.01.2018 | B30: Борщ сибирский | C30: 5.4 | D30: 3.4 | E30: 6.5 | F30: 76.7 | G30: 350 | H30: 18.9 | I30: 11.9 | J30: 22.75 | K30: 268.45
A31: 30.01.2018 | B31: Хлеб из ржано-пшеничной муки | C31: 6.8 | D31: 1.2 | E31: 46.4 | F31: 215 | G31: 150 | H31: =C31*G31/100 -> 10.2 | I31: =D31*G31/100 -> 1.8 | J31: =E31*G31/100 -> 69.6 | K31: =F31*G31/100 -> 322.5
A32: 30.01.2018 | B32: Рыба по-волжски (рыба маринованная, жареная) | C32: 24.8 | D32: 14.7 | E32: 8.8 | F32: 264.8 | G32: 200 | H32: 49.6 | I32: 29.4 | J32: 17.6 | K32: 529.6
A33: 30.01.2018 | B33: Яблочно-виноградный напиток | C33: 0.3 | D33: 0 | E33: 12.3 | F33: 52 | G33: 200 | H33: 0.6 | I33: 0 | J33: 24.6 | K33: 104
A34: 30.01.2018 | B34: Свинина, стейк из окорока, без костей, мясо с жиром, жареная | C34: 27.57 | D34: 4.41 | E34: 0 | F34: 158 | G34: 180 | H34: 49.626 | I34: 7.938 | J34: 0 | K34: 284.4
A35: 30.01.2018 | B35: Картофель жареный | C35: 2.3 | D35: 9.9 | E35: 23.6 | F35: 198.7 | G35: 150 | H35: 3.45 | I35: 14.85 | J35: 35.4 | K35: 298.05
A36: 30.01.2018 | B36: Сок клюквенный | C36: 0.4 | D36: 0.3 | E36: 11 | F36: 45.5 | G36: 200 | H36: 0.8 | I36: 0.6 | J36: 22 | K36: 91
A37: 30.01.2018 Итог | H37: =SUBTOTAL(9,H26:H36) -> 158.716 | I37: =SUBTOTAL(9,I26:I36) -> 119.168 | J37: =SUBTOTAL(9,J26:J36) -> 341.19 | K37: =SUBTOTAL(9,K26:K36) -> 3041.6
A38: Общий итог | H38: =SUBTOTAL(9,H12:H36) -> 257.866 | I38: =SUBTOTAL(9,I12:I36) -> 232.578 | J38: =SUBTOTAL(9,J12:J36) -> 595.8696 | K38: =SUBTOTAL(9,K12:K36) -> 5456.71
H39: 0 | I39: 0 | J39: 0 | K39: 0
H40: 0 | I40: 0 | J40: 0 | K40: 0
H41: 0 | I41: 0 | J41: 0 | K41: 0
H42: 0 | I42: 0 | J42: 0 | K42: 0
H43: 0 | I43: 0 | J43: 0 | K43: 0
H44: 0 | I44: 0 | J44: 0 | K44: 0
H45: 0 | I45: 0 | J45: 0 | K45: 0
H46: 0 | I46: 0 | J46: 0 | K46: 0
H47: 0 | I47: 0 | J47: 0 | K47: 0
H48: 0 | I48: 0 | J48: 0 | K48: 0
H49: 0 | I49: 0 | J49: 0 | K49: 0
H50: 0 | I50: 0 | J50: 0 | K50: 0
H51: 0 | I51: 0 | J51: 0 | K51: 0
H52: 0 | I52: 0 | J52: 0 | K52: 0
H53: 0 | I53: 0 | J53: 0 | K53: 0
H54: 0 | I54: 0 | J54: 0 | K54: 0
H55: 0 | I55: 0 | J55: 0 | K55: 0
H56: 0 | I56: 0 | J56: 0 | K56: 0
H57: 0 | I57: 0 | J57: 0 | K57: 0
H58: 0 | I58: 0 | J58: 0 | K58: 0
H59: 0 | I59: 0 | J59: 0 | K59: 0
H60: 0 | I60: 0 | J60: 0 | K60: 0
H61: 0 | I61: 0 | J61: 0 | K61: 0
H62: 0 | I62: 0 | J62: 0 | K62: 0
H63: 0 | I63: 0 | J63: 0 | K63: 0
H64: 0 | I64: 0 | J64: 0 | K64: 0
H65: 0 | I65: 0 | J65: 0 | K65: 0
H66: 0 | I66: 0 | J66: 0 | K66: 0
H67: 0 | I67: 0 | J67: 0 | K67: 0
H68: 0 | I68: 0 | J68: 0 | K68: 0
H69: 0 | I69: 0 | J69: 0 | K69: 0
H70: 0 | I70: 0 | J70: 0 | K70: 0
H71: 0 | I71: 0 | J71: 0 | K71: 0
H72: 0 | I72: 0 | J72: 0 | K72: 0
H73: 0 | I73: 0 | J73: 0 | K73: 0
H74: 0 | I74: 0 | J74: 0 | K74: 0
H75: 0 | I75: 0 | J75: 0 | K75: 0
H76: 0 | I76: 0 | J76: 0 | K76: 0
H77: 0 | I77: 0 | J77: 0 | K77: 0
H78: 0 | I78: 0 | J78: 0 | K78: 0
H79: 0 | I79: 0 | J79: 0 | K79: 0
H80: 0 | I80: 0 | J80: 0 | K80: 0
H81: 0 | I81: 0 | J81: 0 | K81: 0
H82: 0 | I82: 0 | J82: 0 | K82: 0
H83: =C83*G83/100 -> 0 | I83: =D83*G83/100 -> 0 | J83: =E83*G83/100 -> 0 | K83: =F83*G83/100 -> 0
H84: 0 | I84: 0 | J84: 0 | K84: 0
H85: 0 | I85: 0 | J85: 0 | K85: 0
H86: 0 | I86: 0 | J86: 0 | K86: 0
H87: 0 | I87: 0 | J87: 0 | K87: 0
H88: 0 | I88: 0 | J88: 0 | K88: 0
H89: 0 | I89: 0 | J89: 0 | K89: 0
H90: 0 | I90: 0 | J90: 0 | K90: 0
H91: 0 | I91: 0 | J91: 0 | K91: 0
H92: 0 | I92: 0 | J92: 0 | K92: 0
H93: 0 | I93: 0 | J93: 0 | K93: 0
H94: 0 | I94: 0 | J94: 0 | K94: 0
H95: 0 | I95: 0 | J95: 0 | K95: 0
H96: 0 | I96: 0 | J96: 0 | K96: 0
H97: 0 | I97: 0 | J97: 0 | K97: 0
H98: 0 | I98: 0 | J98: 0 | K98: 0
H99: 0 | I99: 0 | J99: 0 | K99: 0
H100: 0 | I100: 0 | J100: 0 | K100: 0
H101: 0 | I101: 0 | J101: 0 | K101: 0
H102: 0 | I102: 0 | J102: 0 | K102: 0
H103: 0 | I103: 0 | J103: 0 | K103: 0

Sheet Справочник
B1: 0 | C1: 0 | D1: 0 | E1: 0
A2: Наименование продукта | B2: на 100 г продукта
B3: Белки | C3: Жиры | D3: Углеводы | E3: Ккал | G3: или Ctrl+F
A4: Винегрет из овощей | B4: 1.9 | C4: 13.9 | D4: 11.7 | E4: 176.9 | G4: Овсяная каша на молоке
A5: Винегрет из овощей и фруктов | B5: 1.9 | C5: 9.5 | D5: 11.9 | E5: 137.4 | G5: Кофе, сваренный, молотый
A6: Винегрет из овощей, яблок и зелени | B6: 1.6 | C6: 7.3 | D6: 8.6 | E6: 104.2 | G6: Сахар песок
A7: Винегрет из перца с картофелем | B7: 3 | C7: 6.2 | D7: 7.9 | E7: 97.4 | G7: Хлеб Пшеничный
A8: Винегрет из фруктов и овощей | B8: 2.1 | C8: 8.2 | D8: 12.4 | E8: 128.5 | G8: Масло сливочное
A9: Винегрет овощной | B9: 1.7 | C9: 4.9 | D9: 6.8 | E9: 76.6
A10: Винегрет по-румынски | B10: 6.2 | C10: 16.8 | D10: 8.7 | E10: 208.1 | G10: Винегрет овощной
A11: Винегрет с консервированным мясом | B11: 10.3 | C11: 15.4 | D11: 9.5 | E11: 215 | G11: Суп картофельный с грибами
A12: Винегрет с селедкой | B12: 4.5 | C12: 6.9 | D12: 10.5 | E12: 119.1 | G12: Мясо, жаренное
A13: Винегрет с жирной сельдью | B13: 9.1 | C13: 13 | D13: 6.8 | E13: 179.2 | G13: Картофель жареный
A14: Диетический салат из свеклы и яблок | B14: 0.8 | C14: 3 | D14: 17 | E14: 94.2 | G14: Хлеб Дарницкий
A15: Жареный салат "Универсал" | B15: 1 | C15: 0.2 | D15: 5.5 | E15: 26.6 | G15: Сок апельсиновый
A16: Морковный салат | B16: 0.8 | C16: 7.5 | D16: 4.7 | E16: 88.2
A17: Морковь с помидорами и яблоками | B17: 0.8 | C17: 1.6 | D17: 7 | E17: 44.4 | G17: Сосиски, молочные
A18: Огуречный салат | B18: 3.7 | C18: 12 | D18: 2.2 | E18: 131.5 | G18: Картофельное пюре на молоке
A19: Окрошка | B19: 3.7 | C19: 5.1 | D19: 4 | E19: 75.7 | G19: Хлеб Столичный
A20: Окрошка | B20: 2.4 | C20: 3.2 | D20: 5 | E20: 57.2 | G20: Чай заваренный с лимоном
A21: Окрошка мясная | B21: 7 | C21: 4.8 | D21: 4.6 | E21: 89.1 | G21: Сахар песок
A22: Окрошка овощная | B22: 1.9 | C22: 1.9 | D22: 6.4 | E22: 48.1 | G22: Печенье, сдобное миндальное
A23: Окрошка сборная мясная | B23: 5.1 | C23: 6.4 | D23: 4.6 | E23: 95.1
A24: Пестрый салат | B24: 3.7 | C24: 1.9 | D24: 11.2 | E24: 73.9 | G24: Кефир 3.2%
A25: Печеночный салат | B25: 8.2 | C25: 7.5 | D25: 1.1 | E25: 104.7
A26: Помидоры с огурцами и перцем | B26: 1 | C26: 0.9 | D26: 5 | E26: 30.7
A27: Помидоры с огурцами и яблоками | B27: 0.8 | C27: 4.9 | D27: 4.8 | E27: 65.7
A28: Помидоры с чесночной заправкой | B28: 3.9 | C28: 1.9 | D28: 10.1 | E28: 70.9
A29: Помидоры, фаршированные салатом из яблок и огурцов. | B29: 0.7 | C29: 3.2 | D29: 5.8 | E29: 53.5
A30: Редиска со сметаной | B30: 2.7 | C30: 9 | D30: 3 | E30: 103.5
A31: Редька в сметане | B31: 2 | C31: 9.2 | D31: 5.5 | E31: 111.8
A32: Рыбный салат | B32: 5.1 | C32: 12 | D32: 4.5 | E32: 145.6
A33: Рыбный салат | B33: 9.3 | C33: 18.3 | D33: 1.4 | E33: 207
A34: Салат "Ак-идель" (рыбный с рисом по-башкирски) | B34: 18.4 | C34: 29.6 | D34: 7.5 | E34: 368.8
A35: Салат "Архиерейский" | B35: 5.9 | C35: 20.8 | D35: 3 | E35: 221.5
A36: Салат "Весна" | B36: 3 | C36: 7.4 | D36: 3.1 | E36: 90.3
A37: Салат "Гранат" | B37: 4.7 | C37: 18 | D37: 12 | E37: 225.9
A38: Салат "Гранатовый браслет" | B38: 3.9 | C38: 14.2 | D38: 6.1 | E38: 166.6
A39: Салат "Грибки" | B39: 6.5 | C39: 4.7 | D39: 2.6 | E39: 77.6
A40: Салат "Золушка" | B40: 0 | C40: 0 | D40: 0 | E40: 0
A41: Салат "Киевский" | B41: 5 | C41: 12 | D41: 8.8 | E41: 160.9
A42: Салат "Копенгагенский" | B42: 3 | C42: 4.8 | D42: 5.4 | E42: 75.7
A43: Салат "Кремлевский" | B43: 5.8 | C43: 22.1 | D43: 7.9 | E43: 252.3
A44: Салат "Летний" | B44: 3.6 | C44: 7.5 | D44: 5.4 | E44: 102.5
A45: Салат "Матрешки" | B45: 11.4 | C45: 8.4 | D45: 1.2 | E45: 125.9
A46: Салат "Мимоза" | B46: 6.3 | C46: 28.3 | D46: 4.4 | E46: 296.6
A47: Салат "Молдова" | B47: 5.5 | C47: 20.4 | D47: 20.7 | E47: 283.5
A48: Салат "Московский" | B48: 4.7 | C48: 24.7 | D48: 10.5 | E48: 280.3
A49: Салат "Невеста" | B49: 4.3 | C49: 18.5 | D49: 9.4 | E49: 218.7
A50: Салат "Нежность" | B50: 5.1 | C50: 8.7 | D50: 30 | E50: 211
A51: Салат "Обжарка" | B51: 3.8 | C51: 11.9 | D51: 2.7 | E51: 132.6
A52: Салат "Осенний" из свежих овощей с рыбой | B52: 8.3 | C52: 7.7 | D52: 5.5 | E52: 123
A53: Салат "Острый" из картофеля с ветчиной и чесноком | B53: 5.9 | C53: 10.3 | D53: 15.5 | E53: 175
A54: Салат "Петровский" грибной с квашеной капустой и огурцами | B54: 1.5 | C54: 10.3 | D54: 3.1 | E54: 110.5
A55: Салат «Поцелуй любовницы» | B55: 5.6 | C55: 19.7 | D55: 10.7 | E55: 239.4
A56: Салат "Приятное с полезным" | B56: 8.5 | C56: 0.7 | D56: 16.5 | E56: 101.7
A57: Салат "Тихая заводь" | B57: 7.8 | C57: 23.5 | D57: 4.6 | E57: 259.9
A58: Салат "Универсал" | B58: 1 | C58: 0.2 | D58: 5.6 | E58: 27.2
A59: Салат "Цезарь" | B59: 14.8 | C59: 17.2 | D59: 24 | E59: 303.6
A60: Салат "Эгоист" | B60: 10.5 | C60: 19.5 | D60: 9.2 | E60: 252.3
A61: Салат "Эксклюзив" | B61: 7.2 | C61: 6.8 | D61: 2.9 | E61: 100.4
A62: Салат "Экспериментальный" | B62: 2.6 | C62: 4.2 | D62: 9.8 | E62: 85
A63: Салат "Эстонский" | B63: 2.3 | C63: 14.2 | D63: 7.8 | E63: 166.2
A64: Салат витаминный | B64: 1.4 | C64: 7.7 | D64: 10.3 | E64: 113.7
A65: Салат гороховый с яблоками | B65: 3.3 | C65: 5.3 | D65: 11.2 | E65: 102.3
A66: Салат греческий | B66: 3.9 | C66: 17.8 | D66: 3.4 | E66: 188.5
A67: Салат для мужчин | B67: 1.6 | C67: 10 | D67: 8.3 | E67: 127.5
A68: Салат из белокачанной капусты | B68: 1.8 | C68: 3.6 | D68: 7.6 | E68: 67.9
A69: Салат из белокочанной и морской капусты | B69: 1.8 | C69: 5.1 | D69: 8.4 | E69: 84.6
A70: Салат из белокочанной капусты с кальмарами | B70: 14 | C70: 17.7 | D70: 3.7 | E70: 229.5
A71: Салат из белокочанной капусты с сельдью и шпиком | B71: 13 | C71: 13 | D71: 4.4 | E71: 185.6
A72: Салат из белокочанной капусты с яблоками и сельдереем | B72: 1.6 | C72: 5 | D72: 9 | E72: 85.3
A73: Салат из белых грибов или шампиньонов | B73: 5.2 | C73: 2.5 | D73: 5.2 | E73: 62.3
A74: Салат из бобов | B74: 3.3 | C74: 13.9 | D74: 5 | E74: 157.4
A75: Салат из грибов и квашеной капусты | B75: 2 | C75: 8.7 | D75: 8.9 | E75: 120.3
A76: Салат из грибов с сельдью | B76: 8.2 | C76: 10.8 | D76: 1.6 | E76: 135.7
A77: Салат из зелени с дичью | B77: 6.8 | C77: 18.5 | D77: 9.7 | E77: 230.4
A78: Салат из кабачков и помидоров | B78: 1.1 | C78: 9 | D78: 4.8 | E78: 103.4
A79: Салат из кальмаров с яблоками | B79: 16.4 | C79: 21.6 | D79: 14.7 | E79: 315.3
A80: Салат из капусты с апельсинами | B80: 2.5 | C80: 5.3 | D80: 11.1 | E80: 99.1
A81: Салат из капусты с грибами | B81: 5.9 | C81: 5.5 | D81: 9 | E81: 106.6
A82: Салат из капусты с яблоками | B82: 1.5 | C82: 0.2 | D82: 6.5 | E82: 32.4
A83: Салат из капусты с яблоками | B83: 2.5 | C83: 3.1 | D83: 6 | E83: 60.2
A84: Салат из капусты с яблоками и луком | B84: 1.1 | C84: 2.3 | D84: 12.4 | E84: 71.7
A85: Салат из картофеля с морской капустой и свеклой | B85: 2.1 | C85: 7.8 | D85: 9.4 | E85: 114
A86: Салат из картофеля с редькой и яблоками | B86: 4.2 | C86: 17.9 | D86: 7.5 | E86: 205.8
A87: Салат из квашенной капусты | B87: 1.6 | C87: 3.1 | D87: 11.6 | E87: 77.8
A88: Салат из квашенной капусты и свеклы | B88: 1.9 | C88: 5 | D88: 4.6 | E88: 69.9
A89: Салат из квашеной капусты | B89: 1.4 | C89: 8.1 | D89: 6.2 | E89: 101.7
A90: Салат из квашеной капусты с селью | B90: 8 | C90: 11.4 | D90: 8.3 | E90: 165.3
A91: Салат из кильки в томатном соусе | B91: 5 | C91: 27.2 | D91: 5 | E91: 283.5
A92: Салат из кольраби | B92: 2.1 | C92: 12.3 | D92: 7 | E92: 144.8
A93: Салат из крабов | B93: 14.7 | C93: 9.5 | D93: 7.3 | E93: 171.8
A94: Салат из красного сладкого перца, зеленого горошка и риса | B94: 10 | C94: 5.3 | D94: 42.4 | E94: 247.2
A95: Салат из краснокачанной капусты | B95: 0.8 | C95: 3.6 | D95: 7.8 | E95: 64.4
A96: Салат из краснокачанной капусты с яблоками | B96: 0.7 | C96: 0.3 | D96: 8.6 | E96: 38.1
A97: Салат из краснокочанной капусты | B97: 0.5 | C97: 6.1 | D97: 7.8 | E97: 86.8
A98: Салат из краснокочанной капусты с грибами | B98: 1.8 | C98: 6.5 | D98: 8.4 | E98: 97.4
A99: Салат из креветок с рисом | B99: 25.6 | C99: 10.3 | D99: 30.6 | E99: 310.1
A100: Салат из кукурузы | B100: 8.8 | C100: 8.5 | D100: 54.8 | E100: 317.6
A101: Салат из курицы по-архангельски | B101: 4.7 | C101: 15 | D101: 11.3 | E101: 195.9
A102: Салат из маринованной свеклы с яблоками | B102: 1.3 | C102: 6.1 | D102: 8 | E102: 90.1
A103: Салат из моркови | B103: 5.7 | C103: 7.6 | D103: 26.8 | E103: 191.8
A104: Салат из моркови и капусты | B104: 1.7 | C104: 11 | D104: 9.2 | E104: 140.6
A105: Салат из моркови с курагой, помидорами и яблоками | B105: 1.2 | C105: 2.8 | D105: 12.8 | E105: 78.2
A106: Салат из моркови с орехами и медом | B106: 4.9 | C106: 15.2 | D106: 16.7 | E106: 219.4
A107: Салат из моркови с хреном | B107: 1.9 | C107: 12.6 | D107: 5.4 | E107: 141.2
A108: Салат из морского гребешка с огурцами | B108: 9 | C108: 11.1 | D108: 3.3 | E108: 148.2
A109: Салат из овощей с капустой морской | B109: 2 | C109: 10.6 | D109: 9.1 | E109: 136.8
A110: Салат из огурцов | B110: 1.1 | C110: 4.5 | D110: 3.2 | E110: 57
A111: Салат из перца | B111: 1.1 | C111: 16.9 | D111: 4.4 | E111: 173
A112: Салат из помидоров | B112: 4.4 | C112: 12.4 | D112: 4.4 | E112: 146
A113: Салат из помидоров и огурцов | B113: 0.7 | C113: 7.7 | D113: 4.5 | E113: 89.2
A114: Салат из помидоров по-чилийски | B114: 0.6 | C114: 0.2 | D114: 4.2 | E114: 19.9
A115: Салат из помидоров, огурцов и сладкого перца | B115: 1.1 | C115: 0.2 | D115: 5.2 | E115: 25
A116: Салат из птицы или дичи | B116: 5.6 | C116: 15.1 | D116: 10.9 | E116: 198.8
A117: Салат из птицы или дичи | B117: 11.2 | C117: 19.4 | D117: 6.3 | E117: 243.5
A118: Салат из разных фруктов | B118: 1 | C118: 11.9 | D118: 9.5 | E118: 147.3
A119: Салат из редиски со метаной | B119: 2 | C119: 9.3 | D119: 4 | E119: 106.4
A120: Салат из редьки | B120: 2.2 | C120: 19.1 | D120: 6.3 | E120: 204.2
A121: Салат из редьки и картофеля по-кабардински | B121: 4.7 | C121: 9.2 | D121: 7.3 | E121: 128.4
A122: Салат из редьки с орехами | B122: 0 | C122: 0 | D122: 0 | E122: 0
A123: Салат из репы | B123: 1.8 | C123: 9.4 | D123: 13.6 | E123: 142.6
A124: Салат из рыбы | B124: 10.5 | C124: 13 | D124: 6.9 | E124: 184.9
A125: Салат из свежей капусты с мясом | B125: 3.7 | C125: 12.8 | D125: 3.6 | E125: 143.1
A126: Салат из свежих овощей | B126: 1.6 | C126: 4.4 | D126: 8.3 | E126: 77.5
A127: Салат из свеклы и хрена | B127: 1.3 | C127: 5.2 | D127: 11.6 | E127: 95.6
A128: Салат из свеклы с орехами | B128: 1.7 | C128: 8.8 | D128: 8.5 | E128: 117.8
A129: Салат из свеклы с сыром и чесноком | B129: 7.1 | C129: 17.1 | D129: 7.8 | E129: 211.6
A130: Салат из свеклы с хреном | B130: 1.5 | C130: 0.1 | D130: 10.7 | E130: 46.8
A131: Салат из свеклы с черносливом, орехами и чесноком | B131: 7.1 | C131: 15.6 | D131: 30.7 | E131: 284
A132: Салат из сельди | B132: 11.9 | C132: 14.7 | D132: 6.4 | E132: 204.1
A133: Салат из соленых огурцов и брюквы | B133: 1.9 | C133: 3.7 | D133: 6.8 | E133: 66.6
A134: Салат из соленых огурцов и редьки | B134: 1.2 | C134: 7.7 | D134: 4.3 | E134: 90.8
A135: Салат из соленых огурцов и свеклы | B135: 1.4 | C135: 7.6 | D135: 5.6 | E135: 95
A136: Салат из спаржи | B136: 2.1 | C136: 23.9 | D136: 3.6 | E136: 237.5
A137: Салат из стручковой фасоли | B137: 16.1 | C137: 3.9 | D137: 31.1 | E137: 215.9
A138: Салат из стручковой фасоли | B138: 2.8 | C138: 10.5 | D138: 7.2 | E138: 132.5
A139: Салат из сырой моркови и репы | B139: 1.5 | C139: 8.8 | D139: 8.2 | E139: 115.9
A140: Салат из сырой моркови м яблоками | B140: 1.2 | C140: 4.8 | D140: 9.1 | E140: 82.2
A141: Салат из сырой свеклы | B141: 1.2 | C141: 4.7 | D141: 8 | E141: 76.7
A142: Салат из сырых овощей | B142: 1.6 | C142: 7.6 | D142: 5.3 | E142: 94.3
A143: Салат из сырых овощей с яблоками | B143: 1.1 | C143: 3.3 | D143: 6.4 | E143: 58
A144: Салат из творога | B144: 12.6 | C144: 19.2 | D144: 6.1 | E144: 246.4
A145: Салат из трески с майонезом | B145: 9.9 | C145: 15 | D145: 2.6 | E145: 184.6
A146: Салат из трески с хреном | B146: 8.9 | C146: 10.1 | D146: 10 | E146: 164.8
A147: Салат из тыквы | B147: 0.9 | C147: 6.1 | D147: 3.8 | E147: 73
A148: Салат из тыквы по-чувашски | B148: 1.2 | C148: 0.2 | D148: 20.4 | E148: 82.9
A149: Салат из тыквы с яблоками | B149: 0.6 | C149: 0.3 | D149: 8.2 | E149: 35.7
A150: Салат из фасоли | B150: 0.9 | C150: 0.9 | D150: 88.9 | E150: 345.2
A151: Салат из фасоли | B151: 13.8 | C151: 19.6 | D151: 28.1 | E151: 336.6
A152: Салат из фруктов | B152: 0.8 | C152: 4.9 | D152: 12.9 | E152: 95.2
A153: Салат из цветной капусты | B153: 1.8 | C153: 3.8 | D153: 3.1 | E153: 53.2
A154: Салат из цветной капусты | B154: 1.2 | C154: 5.7 | D154: 3.5 | E154: 69.1
A155: Салат из цветной капусты, свежих огурцов и помидоров | B155: 2 | C155: 5.3 | D155: 5.6 | E155: 77.3
A156: Салат из шампиньонов | B156: 3.9 | C156: 12.5 | D156: 4 | E156: 143.1
A157: Салат из щавеля | B157: 2.3 | C157: 18.8 | D157: 5.8 | E157: 200.1
A158: Салат из яблок и брусники | B158: 0.8 | C158: 5 | D158: 8.1 | E158: 78.6
A159: Салат из яблок и лука | B159: 1 | C159: 8.3 | D159: 8.6 | E159: 111.1
A160: Салат из яблок и моркови с орехами | B160: 4.1 | C160: 6.8 | D160: 19.9 | E160: 152.6
A161: Салат из яблок и помидоров | B161: 0.8 | C161: 4.1 | D161: 7.2 | E161: 67.1
A162: Салат из яблок и сливы | B162: 2.6 | C162: 2.2 | D162: 18.1 | E162: 97.9
A163: Салат из яблок и тыквы | B163: 0.6 | C163: 0.3 | D163: 8.3 | E163: 36.2
A164: Салат из яблок с орехами | B164: 1.7 | C164: 0.3 | D164: 17.6 | E164: 75.8
A165: Салат картофельный | B165: 2.5 | C165: 6.6 | D165: 15.5 | E165: 127.9
A166: Салат картофельный с грибами и брусникой | B166: 4.2 | C166: 9.1 | D166: 6.7 | E166: 123.6
A167: Салат картофельный с грибами и клюквой | B167: 4.2 | C167: 9.1 | D167: 6.7 | E167: 123.6
A168: Салат картофельный с яблоками | B168: 2 | C168: 7.9 | D168: 8.2 | E168: 109.5
A169: Салат любительский | B169: 1.5 | C169: 5.5 | D169: 11.2 | E169: 97.3
A170: Салат Муравейник | B170: 12.6 | C170: 7.9 | D170: 30.2 | E170: 235.4
A171: Салат мясной | B171: 7.1 | C171: 15.5 | D171: 9.9 | E171: 205.1
A172: Салат мясной | B172: 11.8 | C172: 20.7 | D172: 5.4 | E172: 254
A173: Салат овощной с редькой и яблоками | B173: 2 | C173: 13.5 | D173: 7.4 | E173: 157.3
A174: Салат овощной с яблоками и сладким перцем | B174: 1.4 | C174: 10.8 | D174: 5.7 | E174: 123.8
A175: Салат освежающий с редькой | B175: 1.7 | C175: 0.3 | D175: 10.3 | E175: 47.9
A176: Салат осенний | B176: 1.6 | C176: 6.1 | D176: 5.6 | E176: 82.1
A177: Салат по-берлински | B177: 1.9 | C177: 21.6 | D177: 4.8 | E177: 219.7
A178: Салат по-деревенски | B178: 2.6 | C178: 7.2 | D178: 10.1 | E178: 113.7
A179: Салат по-коми-пермяцки (из квашеной капусты с мясом) | B179: 10.5 | C179: 10.1 | D179: 2.8 | E179: 143
A180: Салат по-французски | B180: 2.1 | C180: 14.3 | D180: 7.9 | E180: 166.6
A181: Салат по-чешски | B181: 4.2 | C181: 18.4 | D181: 3.8 | E181: 196.6
A182: Салат рыбный | B182: 6.4 | C182: 12.4 | D182: 4.4 | E182: 153.3
A183: Салат рыбный | B183: 12.1 | C183: 15.7 | D183: 3.9 | E183: 204.2
A184: Салат рыбный с морской капустой | B184: 8.8 | C184: 7.5 | D184: 4.2 | E184: 119
A185: Салат с колбасой | B185: 4 | C185: 14.8 | D185: 8.9 | E185: 182.5
A186: Салат с копченой треской | B186: 6.9 | C186: 8.8 | D186: 4 | E186: 122.2
A187: Салат с креветками | B187: 7.7 | C187: 23.3 | D187: 2.7 | E187: 250.9
A188: Салат с кукурузой | B188: 7.4 | C188: 22.5 | D188: 23.4 | E188: 319.9
A189: Салат с маслом и уксусом | B189: 1.4 | C189: 15.8 | D189: 5.1 | E189: 167.2
A190: Салат с сардинами | B190: 6.1 | C190: 2.6 | D190: 10 | E190: 85.1
A191: Салат сезонный | B191: 2.1 | C191: 10.1 | D191: 8.2 | E191: 129.8
A192: Салат со сметаной и яйцом | B192: 1.8 | C192: 7 | D192: 3 | E192: 81.4
A193: Салат столичный | B193: 15.9 | C193: 27.8 | D193: 3 | E193: 325.2
A194: Салат фруктовый со сметанным соусом | B194: 1.1 | C194: 7.9 | D194: 16.6 | E194: 137.7
A195: Салат яичный | B195: 7.3 | C195: 19.5 | D195: 2.6 | E195: 214.2
A196: Салат-коктейль овощной | B196: 1.8 | C196: 12.8 | D196: 6.6 | E196: 147.4
A197: Салат-коктейль рыбный | B197: 13.9 | C197: 17.3 | D197: 1.7 | E197: 217.6 | G197: Салаты —100 г
A198: Салат-коктейль с ветчиной и сыром | B198: 12.4 | C198: 23.8 | D198: 2.6 | E198: 273.6 | G198: Первое блюдо —250 г (пол.порции) -500 г.(полная порция)
A199: Салат-коктейль с курицей и фруктами | B199: 10.3 | C199: 19.1 | D199: 8.6 | E199: 245.1 | G199: Второе блюдо —100 г
A200: Свекла в сладком маринаде | B200: 0.4 | C200: 0.04 | D200: 12.4 | E200: 48.6 | G200: Гарнир —150 г
... 7195 more rows

Sheet Индивидуальный К
B1: Расчет индивидуального коэффициента физической активности
C2: Вид деятельности | D2: Время Н | E2: k | G2: H x k
D3: час:мин
C4: Сон | D4: 08:00:00 | E4: 0.8 | G4: =D4*E4 -> 06:24:00
C6: Утренняя зарядка | D6: 00:15:00 | E6: 3.6 | G6: =D6*E6 -> 00:54:00
C7: Прием пищи | D7: 00:20:00 | E7: 1.3 | G7: =D7*E7 -> 00:26:00
C8: Личная гигиена - душ, бритье (макияж), одевание | D8: 00:30:00 | E8: 1.4 | G8: =D8*E8 -> 00:42:00
C9: Работа
C10: 1. Работники умственного труда, очень легкая физическая активность (научные работники, студенты гуманитарных специальностей, операторы ПК, программисты, педагоги, диспетчеры, администраторы и др.) | D10: 00:00:00 | E10: 1.2 | G10: =D10*E10 -> 00:00:00
C11: 2. Работники, занятые легким трудом, легкая физическая активность (руководители, водители, работники конвееров, весовщицы, упаковщицы, швеи, работники радиоэлектронной промышленности, агрономы, медсестры, санитарки, работники связи, обслуживания, продавцы и др. ) | D11: 08:00:00 | E11: 1.4 | G11: =D11*E11 -> 11:12:00
C12: 3. Работники труда средней тяжести, средняя физическая активность (слесари, наладчики, настройщики, станочники, буровики, водители эскаваторов, бульдозеров, врачи-хирурги, текстильщики, обувщики, железнодорожники, металлурги-доменщики, работники химзаводов и др.) | D12: 00:00:00 | E12: 1.6 | G12: =D12*E12 -> 00:00:00
C13: 4. Работники тяжелого физического труда, высокая физическая активность (строительные рабочие, помощники буровиков, проходчики, хлопкоробы, основная масса с\х рабочих, доярки, овощеводы, деревообработчики и др.) | D13: 00:00:00 | E13: 1.9 | G13: =D13*E13 -> 00:00:00
C14: 5. Работники особо тяжелого физического труда, очень высокая физическая активность (механизаторы, и сельхоз рабочие в посевной и уборочный периоды, горнорабочие, бетонщики, вальщики леса, каменщики, землекопы, грузчики немеханизированного труда и др.) | D14: 00:00:00 | E14: 2.2 | G14: =D14*E14 -> 00:00:00
C16: Неработающие, отсутствие физической активности (неработаюшие пенсионеры, инвалиды, больные на реабилитации, заключенные и др.) | D16: 00:00:00 | E16: 1.1 | G16: =D16*E16 -> 00:00:00
C18: Поездки в общественном транспорте | D18: 01:20:00 | E18: 1.2 | G18: =D18*E18 -> 01:36:00
C19: Вождение автомобиля | D19: 00:00:00 | E19: 2 | G19: =D19*E19 -> 00:00:00
C20: Пешая ходьба в среднем темпе без груза | D20: 00:25:00 | E20: 3.2 | G20: =D20*E20 -> 01:20:00
C21: Пешая ходьба в среднем темпе с грузом | D21: 00:25:00 | E21: 4.8 | G21: =D21*E21 -> 02:00:00
C23: Приготовление пищи | D23: 01:20:00 | E23: 1.8 | G23: =D23*E23 -> 02:24:00
C24: Прием пищи | D24: 00:30:00 | E24: 1.3 | G24: =D24*E24 -> 00:39:00
C25: Уборка, стирка, мытье посуды без применения машин | D25: 00:00:00 | E25: 2.3 | G25: =D25*E25 -> 00:00:00
C26: Общая работа по дому | D26: 00:00:00 | E26: 2.8 | G26: =D26*E26 -> 00:00:00
C27: Тяжелая работа по дому и двору, такая как поднос
C28: воды, дров, уборка снега | D28: 00:00:00 | E28: 4.4 | G28: =D28*E28 -> 00:00:00
C29: Работа на компьютере сидя | D29: 01:10:00 | E29: 1.4 | G29: =D29*E29 -> 01:38:00
C30: Пассивный отдых (просмотр телевизора, чтение, | D30: 01:00:00 | E30: 1.4 | G30: =D30*E30 -> 01:24:00
C31: общение с друзьями дома или в баре)
C32: Велосипедный тренажер (средняя активность) | D32: 00:45:00 | E32: 7.4 | G32: =D32*E32 -> 05:33:00
C33: Регулярные аэробные упражнения низкой
C34: интенсивности (быстрая ходьба, медленный бег) | D34: 00:00:00 | E34: 4.2 | G34: =D34*E34 -> 00:00:00
C35: Регулярные упражнения средней и высокой
C36: интенсивности (быстрая езда на велосипеде и т.д.) | D36: 00:00:00 | E36: 6.5 | G36: =D36*E36 -> 00:00:00
C38: Итого | D38: =SUM(D4:D36) -> 1900-01-01 | G38: =ROUND(SUM(G4:G36),3) -> 1.508
D39: суток:час:мин
C40: Коэффициенты физической активности отдельных видов деятельности (СТУДОПЕДИЯ)
C41: Вид деятельности | E41: Ж | G41: М
C42: 1. Учебная деятельность
C43: 1.1 Практические занятия
C44: А) лабораторные | E44: 2.7 | G44: 2.6
C45: Б) семинарские | E45: 1.9 | G45: 1.8
C46: В) семинарско-лабораторные | E46: 2.4 | G46: 2.3
C47: Г) на клинических кафедрах терапевтического профиля | E47: 2.3 | G47: 2.2
C48: Д) на клинических кафедрах хирургического профиля (ассистирование во время операции) | E48: 2.4 | G48: 2.3
C49: Е) текущий саннадзор на объектах | E49: 2.8 | G49: 2.7
C50: 1.2.Учебно-исследовательская работа
C51: А) выполнение научного эксперимента на животных | E51: 2.7 | G51: 2.6
C52: Б) проведение химических анализов | E52: 2.6 | G52: 2.5
C53: В) уборка рабочих мест после эксперимента | E53: 2.2 | G53: 2
C54: Г) обсуждение научных проблем | E54: 2.2 | G54: 2.1
C55: Работа на компьютерах (операторская) сидя | E55: 1.7 | G55: 1.6
C56: Работа на компьютерах (операторская) стоя | E56: 2.7 | G56: 2.6
C57: 1.3. Лекции | E57: 2 | G57: 1.9
C58: 1.4. Подготовка к занятиям
C59: А) чтение учебной литературы | E59: 1.6 | G59: 1.6
C60: Б) просмотр научной литературы | E60: 1.8 | G60: 1.7
C61: В) реферирование научной литературы | E61: 2 | G61: 1.9
C62: 2. Личная гигиена, самообслуживание
C63: А) умывание | E63: 1.6 | G63: 1.5
C64: Б) душ | E64: 1.8 | G64: 1.7
C65: В) одевание, раздевание, обувание | E65: 1.9 | G65: 1.8
C66: Г) прием еды сидя | E66: 1.5 | G66: 1.3
C67: Д) прием еды стоя | E67: 1.7 | G67: 1.6
C68: 2. Ведение домашнего хозяйства
C69: 2.1 Легкая уборка | E69: 2.7 | G69: 2.7
C70: 2.2. Уборка с умеренной нагрузкой | E70: 3.7 | G70: 3.3
C71: 2.3. Подметание дома | E71: 3.5 | G71: 3.5
C72: 2.4. Подметание двора | E72: 3.1 | G72: 3
C73: 2.5. Стирка одежды, белья | E73: 2.5 | G73: 3,3-4,4
C74: 2.6. Мойка посуды | E74: 1.6 | G74: 1.5
C75: 2.7. Уход за детьми | E75: 2.2 | G75: 2.7
C76: 2.8. Приготовление еды | E76: 1.8 | G76: 2.2
C77: 2.9. Рубка дров | E77: 4.1
C78: 2.10. Приобретение товаров, продуктов | E78: 3.5 | G78: 4,0-4,6
C79: 2.11. Мойка пола, окон | E79: 3.3 | G79: 3.7
C80: 3. Перемещения
C81: 3.1. Хождение по дому | E81: 2.5 | G81: 2.4
C82: 3.2. Прогулка медленная | E82: 3 | G82: 2.8
C83: 3.3. В привычном темпе | E83: 3.4 | G83: 3.2
C84: 3.4. С грузом массой 10 кг | E84: 4.6 | G84: 3.5
C85: 3.5. В гору медленная | E85: 4.7 | G85: 4.6
C86: 3.6. В гору в обычном темпе | E86: 5.7 | G86: 4.6
C87: 3.7. В гору быстрая | E87: 7.5 | G87: 6.6
C88: 3.8. В обычном темпе с грузом 10 кг | E88: 6.7 | G88: 6
C89: 3.9. Под гору медленная | E89: 2.8 | G89: 2.3
C90: 3.10. Под гору в обычном темпе | E90: 3.1 | G90: 3
C91: 3.11. Под гору быстрая | E91: 3.6 | G91: 3.4
C92: 3.12. Ходьба по лестнице вверх | E92: 6.2 | G92: 6.1
C93: 3.13. Езда в транспорте | E93: 1.7 | G93: 1.5
C94: 4. Ведение подсобного хозяйства
C95: 4.1. Работа лопатой | E95: 5.7 | G95: 4.6
C96: 4.2. Посадка деревьев | E96: 4.1 | G96: 4.3
C97: 4.3. Обрезание ветвей деревьев | E97: 7.3 | G97: 7.1
C98: 4.4. Работа сапой, прополка | E98: 2,5-5,0 | G98: 2.9
C99: 4.5. Посадка корнеплодов | E99: 3.7 | G99: 3.9
C100: 5. Строительные работы
C101: 5.1. Тяжелая работа | E101: 5.2 | G101: -
C102: 5.2. Кладка кирпича | E102: 3.3 | G102: -
C103: 5.3. Плотничья работа | E103: 3.2 | G103: -
C104: 5.4. Отделочная работа (малярная, оклейка обоями) | E104: 2.8 | G104: 3
C105: 6. Рукоделие
C106: 6.1. Шитье | E106: 1,5-3,0 | G106: 1,9-3,0
C107: 5.2. Ткачество | E107: 2.1 | G107: 2.2
C108: 6.3. Вышивание | E108: 1.5 | G108: 1.5
C109: 6.4. Вязание | E109: 1.9 | G109: 2
C110: 6.5. Вырезание | E110: 2.1 | G110: -
C111: 7. Занятия легким спортом
C112: 7.1. Игра в шашки, шахматы | E112: 2.2 | G112: 2.1
C113: 7.2. Игра в бильярд, кегли, гольф | E113: 2,2-4,4
C114: 7.3. Аэробные танцы (аэробика) низкой интенсивности | E114: 3.1 | G114: 3.2
C115: 7.4. Аэробные танцы высокой интенсивности | E115: 7.3 | G115: 7.2
C116: 7.5. Бадминтон в умеренном темпе | E116: 3.7 | G116: 3.7
C117: 7.6. Бадминтон в напряженном темпе | E117: 7.3 | G117: 7.1
C118: 7.7. Баскетбол на площадке стандартных размеров | E118: 5.6 | G118: 5.5
C119: 7.8. Волейбол | E119: 3.8 | G119: 3.6
C120: 7.9. Гандбол | E120: 7 | G120: 7.1
C121: 7.10. Утренняя гимнастика | E121: 2.3 | G121: 2.2
C122: 7.11. Легкая гимнастика | E122: 3.5 | G122: 3.5
C123: 7.12. Напряженная гимнастика | E123: 7 | G123: 6.6
C124: 7.13. Бег (11,2 км/час) | E124: 7 | G124: 7.1
C125: 8. Занятие тяжелым спортом
C126: 8.1. Бег (16 км/час) | E126: 11 | G126: 11
C127: 8.2. Верховая езда (галоп) | E127: 4.6 | G127: 4.5
C128: 8.3. Гребля (два весла, 4 км/час) | E128: 3.1 | G128: 3
C129: 8.4. Гребля (одиночная с максимальной скоростью) | E129: 10.5 | G129: 10.2
C130: 8.5. Гребля на каноэ (4 км/час) | E130: 2.7 | G130: 2.6
C131: 8.6. Плавание (0,4 км/час) | E131: 2.9 | G131: 3
C132: 8.7. Плавание (2,4 км/час) | E132: 6.6 | G132: 6.6
C133: 8.8. Плавание быстрым кролем | E133: 8.4 | G133: 8.3
C134: 8.9. Настольный теннис | E134: 3,0-4,0 | G134: 3,0-3,9
C135: 8.10. Хоккей на траве | E135: 7.2 | G135: 7.2
C136: 8.11. Фехтование | E136: 3.1 | G136: 3.1
C137: 8.12. Футбол | E137: 6.8 | G137: 6.6
C138: 8.13. Пеший туризм (рюкзак весом 9 кг, скорость перемещения 3,2км/час) | E138: 2.2 | G138: 2.2
C139: 8.14. То же со скоростью 6,4 км/час | E139: 3.4 | G139: 3.5
C140: 8.15. Альпинизм | E140: 6.8 | G140: 6.6
C141: 8.16. Катание на коньках | E141: 3.7 | G141: 3.5
C142: 8.17. Скоростной бег на коньках | E142: 11
C143: 8.18. Катание на лыжах | E143: 3.9 | G143: 4
C144: 8.19. Скоростной спуск на лыжах | E144: 3.8 | G144: 3.9
C145: 8.20. Водное поло | E145: 8.8 | G145: 8.8
C146: 8.21. Водные лыжи | E146: 3.3 | G146: 3.3
C147: 8.22. Занятие силовой тренировкой на тренажерах | E147: 8 | G147: 7.6
C148: 8.23. Тяжелая атлетика | E148: 6,0-10,0 | G148: 6,0-8,8
C149: 9. Отдых
C150: 9.1. Спокойно сидя | E150: 1.2 | G150: 1.2
C151: 9.2. Просмотр телепередач | E151: 1.4 | G151: 1.4
C152: 9.3. Бальные танцы | E152: 3,0-4,1 | G152: 3,0-4,0
C153: 9.4. Танцы в ритме диско | E153: 6 | G153: 5.8
C154: 9.5. Современные танцы | E154: 3.7 | G154: 3.5
C155: 9.6. Пение | E155: 1.6 | G155: 1.6
C156: 9.7. Чтение художественной литературы | E156: 1.7 | G156: 1.7
C158: Таблица скопирована с сайта "Студопедия" :
C159: http://studopedia.org/9-158787.html

Sheet Ссылки
A1: Эта бесплатная программа распространяется "как есть". Скачивая и используя программу вы соглашаетесь с тем, что автор не несет никакой ответственности за любые сбои в программах(и сбои в работе компьютера из-за неправильного применения программ), а так же за какой-либо ущерб, включая все без исключения случаи упущенной выгоды или потери данных, либо других денежных потерь, ставших результатом использования или невозможности использования программ, даже если разработчик был заранее поставлен в известность о возможности подобного рода ущерба. Хотя таковые случаи весьма и весьма маловероятны, я не исключаю их возможность, т.к. различные версии операционных систем могут различно реагировать на команды программ. Программа тестировались на ОС Windows 10 Х64
A3: Ссылки на сайты по тематике "Дневник питания"
A4: Калорийность продуктов питания
A5: http://easy-lose-weight.info/tablitsa-kaloriinosti-productov-pitaniya/
A6: Таблица калорийности продуктов
A7: http://medotvet.com/services/tablitsa-kaloriinosti-productov
A8: Калорийность продуктов
A9: http://www.calorizator.ru/product
A10: Кулинарные рецепты
A11: http://www.iamcook.ru
A12: Калорийность готовых блюд
A13: https://differed.ru/health/food/tablica-kaloriynosti-gotovyh-blyud
A14: Сбалансированная методика снижения веса
A15: http://health-diet.ru/table_calorie/
A16: Формула Маффина-Сан Джеора (расчёт суточной нормы калорий)
A17: http://kakimenno.ru/krasota-moda-stil/pohudenie/2279-kak-rasschitat-sutochnuyu-normu-kaloriy.html
A18: Определение индекса массы тела (ИМТ)
A19: http://domashniy-doktor.ru/index.php/2011-08-02-17-54-04/218-2013-04-19-11-32-00.html

Sheet Bak (hidden)
H1: =C1*G1/100 -> 0 | I1: =D1*G1/100 -> 0 | J1: =E1*G1/100 -> 0 | K1: =F1*G1/100 -> 0
B2: Индивидуальный расчетный k 1,508 | C2: 95
B3: Малоподвижный образ жизни k=1,200 | C3: 170
B4: Легкая физическая нагрузка k=1,375 | C4: 65
B5: Средняя физическая нагрузка k=1,463
B6: Выраженная физич. нагрузка k=1,638
B7: Тяжелая физическая нагрузка k=1,900
B8: ="Индивидуальный расчетный k " & TEXT(C8,"@") -> Индивидуальный расчетный k 1,508 | C8: ='Индивидуальный К'!G38 -> 1.508
A9: Дата | C9: на 100 граммов продукта | G9: Фактическое количество продукта в граммах | H9: фактическое содержание
B10: Пржде чем начать заполнение "Дневника" установите курсор в эту ячейку | C10: Белки | D10: Жиры | E10: Углеводы | F10: Ккал | H10: Белки | I10: Жиры | J10: Углеводы | K10: Ккал
A11: 1 | B11: 2 | C11: 3 | D11: 4 | E11: 5 | F11: 6 | G11: 7 | H11: 8 | I11: 9 | J11: 10 | K11: 11
H12: =C12*G12/100 -> 0 | I12: =D12*G12/100 -> 0 | J12: =E12*G12/100 -> 0 | K12: =F12*G12/100 -> 0
H13: =C13*G13/100 -> 0 | I13: =D13*G13/100 -> 0 | J13: =E13*G13/100 -> 0 | K13: =F13*G13/100 -> 0
H14: =C14*G14/100 -> 0 | I14: =D14*G14/100 -> 0 | J14: =E14*G14/100 -> 0 | K14: =F14*G14/100 -> 0
H15: =C15*G15/100 -> 0 | I15: =D15*G15/100 -> 0 | J15: =E15*G15/100 -> 0 | K15: =F15*G15/100 -> 0
H16: =C16*G16/100 -> 0 | I16: =D16*G16/100 -> 0 | J16: =E16*G16/100 -> 0 | K16: =F16*G16/100 -> 0
H17: 0 | I17: 0 | J17: 0 | K17: 0
H18: 0 | I18: 0 | J18: 0 | K18: 0
H19: 0 | I19: 0 | J19: 0 | K19: 0
H20: 0 | I20: 0 | J20: 0 | K20: 0
H21: =C21*G21/100 -> 0 | I21: =D21*G21/100 -> 0 | J21: =E21*G21/100 -> 0 | K21: =F21*G21/100 -> 0
H22: 0 | I22: 0 | J22: 0 | K22: 0
H23: 0 | I23: 0 | J23: 0 | K23: 0
H24: 0 | I24: 0 | J24: 0 | K24: 0
H25: 0 | I25: 0 | J25: 0 | K25: 0
H26: 0 | I26: 0 | J26: 0 | K26: 0
H27: 0 | I27: 0 | J27: 0 | K27: 0
H28: 0 | I28: 0 | J28: 0 | K28: 0
H29: 0 | I29: 0 | J29: 0 | K29: 0
H30: =C30*G30/100 -> 0 | I30: =D30*G30/100 -> 0 | J30: =E30*G30/100 -> 0 | K30: =F30*G30/100 -> 0
H31: 0 | I31: 0 | J31: 0 | K31: 0
H32: 0 | I32: 0 | J32: 0 | K32: 0
H33: 0 | I33: 0 | J33: 0 | K33: 0
H34: 0 | I34: 0 | J34: 0 | K34: 0
H35: 0 | I35: 0 | J35: 0 | K35: 0
H36: 0 | I36: 0 | J36: 0 | K36: 0
H37: 0 | I37: 0 | J37: 0 | K37: 0
H38: 0 | I38: 0 | J38: 0 | K38: 0
H39: 0 | I39: 0 | J39: 0 | K39: 0
H40: 0 | I40: 0 | J40: 0 | K40: 0
H41: 0 | I41: 0 | J41: 0 | K41: 0
H42: =C42*G42/100 -> 0 | I42: =D42*G42/100 -> 0 | J42: =E42*G42/100 -> 0 | K42: =F42*G42/100 -> 0
H43: 0 | I43: 0 | J43: 0 | K43: 0
H44: 0 | I44: 0 | J44: 0 | K44: 0
H45: 0 | I45: 0 | J45: 0 | K45: 0
H46: 0 | I46: 0 | J46: 0 | K46: 0
H47: 0 | I47: 0 | J47: 0 | K47: 0
H48: =C48*G48/100 -> 0 | I48: =D48*G48/100 -> 0 | J48: =E48*G48/100 -> 0 | K48: =F48*G48/100 -> 0
H49: 0 | I49: 0 | J49: 0 | K49: 0
H50: 0 | I50: 0 | J50: 0 | K50: 0
H51: 0 | I51: 0 | J51: 0 | K51: 0
H52: 0 | I52: 0 | J52: 0 | K52: 0
H53: 0 | I53: 0 | J53: 0 | K53: 0
H54: 0 | I54: 0 | J54: 0 | K54: 0
H55: 0 | I55: 0 | J55: 0 | K55: 0
H56: 0 | I56: 0 | J56: 0 | K56: 0
H57: 0 | I57: 0 | J57: 0 | K57: 0
H58: 0 | I58: 0 | J58: 0 | K58: 0
H59: 0 | I59: 0 | J59: 0 | K59: 0
H60: 0 | I60: 0 | J60: 0 | K60: 0
H61: 0 | I61: 0 | J61: 0 | K61: 0
H62: 0 | I62: 0 | J62: 0 | K62: 0
H63: 0 | I63: 0 | J63: 0 | K63: 0
H64: 0 | I64: 0 | J64: 0 | K64: 0
H65: 0 | I65: 0 | J65: 0 | K65: 0
H66: 0 | I66: 0 | J66: 0 | K66: 0
H67: 0 | I67: 0 | J67: 0 | K67: 0
H68: 0 | I68: 0 | J68: 0 | K68: 0
H69: =C69*G69/100 -> 0 | I69: =D69*G69/100 -> 0 | J69: =E69*G69/100 -> 0 | K69: =F69*G69/100 -> 0
H70: 0 | I70: 0 | J70: 0 | K70: 0
H71: 0 | I71: 0 | J71: 0 | K71: 0
H72: 0 | I72: 0 | J72: 0 | K72: 0
H73: 0 | I73: 0 | J73: 0 | K73: 0
H74: 0 | I74: 0 | J74: 0 | K74: 0
H75: 0 | I75: 0 | J75: 0 | K75: 0
H76: 0 | I76: 0 | J76: 0 | K76: 0
H77: 0 | I77: 0 | J77: 0 | K77: 0
H78: 0 | I78: 0 | J78: 0 | K78: 0
H79: 0 | I79: 0 | J79: 0 | K79: 0
H80: 0 | I80: 0 | J80: 0 | K80: 0
H81: 0 | I81: 0 | J81: 0 | K81: 0
H82: 0 | I82: 0 | J82: 0 | K82: 0
H83: 0 | I83: 0 | J83: 0 | K83: 0
H84: 0 | I84: 0 | J84: 0 | K84: 0
H85: 0 | I85: 0 | J85: 0 | K85: 0
H86: 0 | I86: 0 | J86: 0 | K86: 0
H87: 0 | I87: 0 | J87: 0 | K87: 0
H88: 0 | I88: 0 | J88: 0 | K88: 0
H89: 0 | I89: 0 | J89: 0 | K89: 0
H90: 0 | I90: 0 | J90: 0 | K90: 0
H91: 0 | I91: 0 | J91: 0 | K91: 0
H92: 0 | I92: 0 | J92: 0 | K92: 0
H93: 0 | I93: 0 | J93: 0 | K93: 0
H94: 0 | I94: 0 | J94: 0 | K94: 0
H95: 0 | I95: 0 | J95: 0 | K95: 0
H96: 0 | I96: 0 | J96: 0 | K96: 0
H97: 0 | I97: 0 | J97: 0 | K97: 0
H98: 0 | I98: 0 | J98: 0 | K98: 0
H99: 0 | I99: 0 | J99: 0 | K99: 0
H100: =C100*G100/100 -> 0 | I100: =D100*G100/100 -> 0 | J100: =E100*G100/100 -> 0 | K100: =F100*G100/100 -> 0
